Cogmind - Beta 14 @@@ ROGUE MODE // 2024.09.27 @ 16:15:14 Player: ILikeVoltron Result: Destroyed by as-74904 with Assembled Blade Performance ------------- Evolutions (0) 0 Regions Visited (4) 800 Robots Destroyed (17) 85 Value Destroyed (276) 276 Prototype IDs (0) 0 Alien Tech Used (0) 0 Bonus (0) 0 TOTAL SCORE: 1161 Bonus ------- None Cogmind --------- Core Integrity 0/250 Matter 495/500 Energy 240/250 System Corruption 0% Temperature Cool (0) Movement Treading (320) Ox2 Location -9/Mines Parts ------- > --- POWER (1) -------- Ion Engine > --- PROPULSION (2) --- Light Treads > --- UTILITY (2) ------ High-capacity Storage Unit High-capacity Matter Pod > --- WEAPON (2) ------- (None) > --- INVENTORY (20) --- Light Nuclear Core Aluminum Leg Aluminum Leg Carbon-fiber Leg Improved Heat Sink Large Storage Unit Medium Matter Pod (100) Makeshift Sensor Array Improved Terrain Scanner Makeshift Terrain Scanner Transport Network Coupler Transport Network Coupler Tractor Beam Mining Laser Makeshift Sword Proton Bomb Trap Proton Bomb Trap Proton Bomb Trap Peak State ------------ > --- POWER ------------ Light Ion Engine > --- PROPULSION ------- Aluminum Leg Carbon-fiber Leg > --- UTILITY ---------- Large Storage Unit Tractor Beam > --- WEAPON ----------- Medium Laser Particle Gun > --- INVENTORY -------- Ion Engine Light Nuclear Core Light Treads Light Treads Aluminum Leg Heat Sink Improved Heat Sink Medium Matter Pod Improved Terrain Scanner Improved Terrain Scanner Seismic Detector Mining Laser [Rating: 12] Favorites ----------- Power Light Ion Engine Engine Light Ion Engine Propulsion Light Treads Treads Light Treads Leg Aluminum Leg Utility Seismic Detector Device Seismic Detector Storage High-capacity Storage Unit Weapon Medium Laser Energy Gun Medium Laser Ballistic Gun Light Assault Rifle Special Weapon Mining Laser Build | -11 -10 -10 -10 -9 ------- Run | Yrd Mat Min Exi Min Slots Evolved . | . . . . . Power . | . . . . . Propulsion . | . . . . . Utility . | . . . . . Weapon . | . . . . . Parts Attached 16 | 2 3 6 3 2 Power 2 | . . 1 . 1 Engine 2 | . . 1 . 1 Core . | . . . . . Reactor . | . . . . . Propulsion 3 | . . 1 2 . Treads 2 | . . . 2 . Leg 1 | . . 1 . . Wheel . | . . . . . Hover . | . . . . . Flight . | . . . . . Utility 5 | 1 1 1 1 1 Device 2 | 1 . 1 . . Storage 3 | . 1 . 1 1 Processor . | . . . . . Hackware . | . . . . . Protection . | . . . . . Artifact . | . . . . . Weapon 6 | 1 2 3 . . Energy Gun 3 | . . 3 . . Energy Cannon . | . . . . . Ballistic Gun 2 | 1 1 . . . Ballistic Cannon . | . . . . . Launcher . | . . . . . Special Weapon 1 | . 1 . . . Impact Weapon . | . . . . . Slashing Weapon . | . . . . . Piercing Weapon . | . . . . . Special Melee Weapon . | . . . . . Unidentified Prototypes . | . . . . . Parts Lost 8 | . . 3 . 5 Power 2 | . . 1 . 1 Propulsion 1 | . . . . 1 Utility 1 | . . . . 1 Weapon 4 | . . 2 . 2 Highest Loss Streak 5 | . . 3 . 5 To Critical Strikes . | . . . . . Average Slot Usage (%) 99 | . 100 99 100 94 Engine 13 | . 14 13 14 12 Treads 14 | . . . 24 26 Leg 13 | . 28 28 3 . Device 13 | . 14 14 14 12 Storage 14 | . 14 14 14 15 Energy Gun 25 | . . 26 28 26 Ballistic Gun 2 | . 24 1 . . Peak Build Rating 12 | 8 8 12 12 12 Average Rating 10 | 7 8 10 11 11 On Entrance 9 | 6 8 8 12 12 Naked Turns . | . . . . . Heaviest Build 52 | 14 29 30 49 52 Greatest Support 40 | 20 20 25 40 40 Greatest Overweight (x) 2 | . 1 1 1 2 Average Overweight (x) . | . . 1 . 1 Largest Inventory Capacity 20 | 8 15 15 20 20 Average Capacity 16 | 8 10 15 19 20 Most Carried 20 | 8 8 15 20 20 Average Carried 15 | 6 8 12 19 19 Final Capacity 20 | 8 15 15 20 20 Final Carried 20 | 8 8 15 20 18 Class Distribution -------------------- 71% | Mutant 28% | Scavenger-Mutant Dominant Class ---------------- Mutant | -10/Materials Scavenger-Mutant | -10/Mines Mutant | -10/Exiles Mutant | -9/Mines Resources | -11 -10 -10 -10 -9 ----------- Run | Yrd Mat Min Exi Min Matter Collected 753 | 359 90 274 . 30 Remotely 358 | 152 90 116 . . Salvage Created 432 | 177 93 162 . . Parts 35 | 18 3 14 . . Haulers Intercepted . | . . . . . Recyclers Shooed 3 | 1 2 . . . Parts Field Recycled . | . . . . . Retrieved Matter . | . . . . . Parts Self-Destructed . | . . . . . Prevented . | . . . . . Kills | -11 -10 -10 -10 -9 ------- Run | Yrd Mat Min Exi Min Combat Hostiles Destroyed 8 | . 2 5 . 1 Guns 7 | . 2 5 . . AOE 1 | . . . . 1 Classes Destroyed 6 | 3 1 1 . 1 Worker 3 | 2 . 1 . . Tunneler 5 | 4 . 1 . . Recycler 1 | 1 . . . . Swarmer 3 | . . 3 . . Grunt 4 | . 2 2 . . Demolisher 1 | . . . . 1 Best Kill Streak 4 | 4 2 2 . 1 Combat Bots Only 2 | . 2 2 . 1 Max Kills in Single Turn 1 | 1 1 1 . 1 Gunslinging . | . . . . . Exploded 1 | . . . . 1 Melee . | . . . . . Uniques/NPCs Destroyed . | . . . . . Combat | -11 -10 -10 -10 -9 -------- Run | Yrd Mat Min Exi Min Hostile Shots Fired 115 | . 8 89 . 18 Missed 36 | . 3 30 . 3 Damage Taken 1199 | . 53 613 . 533 Core 251 | . 11 128 . 112 Absorbed by Shields . | . . . . . Core Remaining (%) 100 | 100 . . . . Volleys Fired 66 | 22 19 22 . 3 Largest 2 | 2 2 2 . 2 Hottest 115 | 70 100 115 . 115 Shots Fired 123 | 44 34 39 . 6 Gun 119 | 44 30 39 . 6 Cannon . | . . . . . Launcher . | . . . . . Special 4 | . 4 . . . Kinetic 70 | 30 30 10 . . Thermal 53 | 14 4 29 . 6 Explosive . | . . . . . Electromagnetic . | . . . . . Robot Hit Streak 8 | 6 8 5 . 4 Robot Miss Streak 3 | 3 2 3 . 1 Penetration Max . | . . . . . Secondary Targets 2 | . . 2 . . Max Gunslinging Chain 1 | . . 1 . . Shots Hit Robots 76 | 27 21 23 . 5 Core Hits 26 | 9 6 11 . . Critical Kills . | . . . . . Critical Parts Destroyed . | . . . . . Critical Strikes . | . . . . . Melee Attacks . | . . . . . Impact . | . . . . . Slashing . | . . . . . Piercing . | . . . . . Sneak Attacks . | . . . . . Combat Hostiles . | . . . . . Follow-up Attacks . | . . . . . Damage Inflicted 928 | 307 210 337 . 74 Guns 928 | 307 210 337 . 74 Cannons . | . . . . . Explosions . | . . . . . Melee . | . . . . . Ramming . | . . . . . Kinetic 468 | 171 210 87 . . Thermal 460 | 136 . 250 . 74 Explosive . | . . . . . Electromagnetic . | . . . . . Impact . | . . . . . Slashing . | . . . . . Piercing . | . . . . . Highest Corruption . | . . . . . Average Corruption . | . . . . . Corruption Purged . | . . . . . Corruption Blocked . | . . . . . Overload Shots . | . . . . . Overflow Damage . | . . . . . Projectiles . | . . . . . Explosions . | . . . . . Melee . | . . . . . Knockbacks . | . . . . . Impact . | . . . . . Kinetic . | . . . . . Secondary . | . . . . . Self-Inflicted Damage . | . . . . . Shots . | . . . . . Rammed . | . . . . . Targets Rammed . | . . . . . Kicked . | . . . . . Crushed . | . . . . . Highest Temperature 216 | 110 40 216 . 162 Average Temperature 49 | 46 13 56 . 83 Received Heat Transfer 252 | . 30 222 . . Siege Activations . | . . . . . Robots Corrupted . | . . . . . Combat Hostiles . | . . . . . Parts Fried . | . . . . . Impact Corruptions . | . . . . . Robots Melted . | . . . . . Combat Hostiles . | . . . . . Parts Melted 1 | . . 1 . . Heat Transferred 1258 | 407 . 666 . 185 Parts Sabotaged . | . . . . . Parts Stolen . | . . . . . Parts Stripped . | . . . . . Power Chain Reactions . | . . . . . Alert | -11 -10 -10 -10 -9 ------- Run | Yrd Mat Min Exi Min Peak Influence 111 | 35 81 111 . 22 Initial 31 | . 22 31 . . Average 41 | 15 62 49 . . Maximum Alert Level . | . . . . . Low Security (%) 100 | 100 100 100 . 100 Level 1 . | . . . . . Level 2 . | . . . . . Level 3 . | . . . . . Level 4 . | . . . . . Level 5 . | . . . . . High Security . | . . . . . Max Security . | . . . . . Squads Dispatched . | . . . . . Investigation . | . . . . . Extermination . | . . . . . Reinforcement . | . . . . . Assault . | . . . . . Garrison . | . . . . . Intercept . | . . . . . Searches Triggered . | . . . . . Construction Impeded . | . . . . . Haulers Reinforced . | . . . . . Active Scanning Responses . | . . . . . Cargo Convoy Interrupts . | . . . . . Stealth | -11 -10 -10 -10 -9 --------- Run | Yrd Mat Min Exi Min Distress Signals 1 | . 1 . . . Communications Jammed . | . . . . . Distress Signals . | . . . . . Times Spotted 21 | . 5 8 . 8 Peak Tracking Total 5 | . 3 4 . 5 Tactical Retreats 1 | . . 1 . . Traps | -11 -10 -10 -10 -9 ------- Run | Yrd Mat Min Exi Min Traps Triggered . | . . . . . Indirectly . | . . . . . Trap Hack Attempts . | . . . . . Triggered . | . . . . . Disarmed . | . . . . . Reprogrammed . | . . . . . Reused . | . . . . . Traps Extracted . | . . . . . Installed . | . . . . . Triggered . | . . . . . Most Traps Carried 3 | . . 3 3 3 Machines | -11 -10 -10 -10 -9 ---------- Run | Yrd Mat Min Exi Min Machines Disabled . | . . . . . Max in Single Turn . | . . . . . Machines Repaired . | . . . . . Machines Dismantled . | . . . . . Machines Sabotaged . | . . . . . Overloaded Fab Kills . | . . . . . Hacking | -11 -10 -10 -10 -9 --------- Run | Yrd Mat Min Exi Min Machines Accessed 4 | . . . 4 . Terminals . | . . . . . Fabricators . | . . . . . Repair Stations . | . . . . . Recycling Units . | . . . . . Scanalyzers . | . . . . . Garrison Access . | . . . . . Total Hacks 49 | . . . 49 . Successful 49 | . . . 49 . Failed . | . . . . . Catastrophic . | . . . . . Database Lockouts . | . . . . . Manual 1 | . . . 1 . Terminals . | . . . . . Fabricators . | . . . . . Repair Stations . | . . . . . Recycling Units . | . . . . . Scanalyzers . | . . . . . Garrison Access . | . . . . . Terminal Hacks 49 | . . . 49 . Record 49 | . . . 49 . Fabricator Hacks . | . . . . . Repair Station Hacks . | . . . . . Recycling Unit Hacks . | . . . . . Scanalyzer . | . . . . . Garrison Access Hacks . | . . . . . Unauthorized Hacks . | . . . . . Terminals . | . . . . . Fabricators . | . . . . . Repair Stations . | . . . . . Recycling Units . | . . . . . Scanalyzers . | . . . . . Garrison Access . | . . . . . Data Cores Recovered . | . . . . . Used . | . . . . . Hacking Detections . | . . . . . Full Trace Events . | . . . . . Feedback Events . | . . . . . Feedback Blocked . | . . . . . Robot Schematics Acquired . | . . . . . Robots Built . | . . . . . Authchips . | . . . . . Time . | . . . . . Total Robot Build Rating . | . . . . . Part Schematics Acquired . | . . . . . Parts Built . | . . . . . Authchips . | . . . . . Time . | . . . . . Total Part Build Rating . | . . . . . Parts Repaired . | . . . . . Time . | . . . . . Parts Recycled . | . . . . . Recycled Matter . | . . . . . Retrieved Matter . | . . . . . Retrieved Components . | . . . . . Parts Scanalyzed . | . . . . . Part Schematics Acquired . | . . . . . Parts Damaged . | . . . . . Bothacking | -11 -10 -10 -10 -9 ------------ Run | Yrd Mat Min Exi Min Used RIF Installer . | . . . . . Robots Hacked . | . . . . . Non-combat . | . . . . . Combat . | . . . . . Robot Hacks Applied . | . . . . . Relay Couplers Released . | . . . . . Fabnet Peak Effective % . | . . . . . Robots Rewired 3 | . . . 3 . Allies Hacked . | . . . . . Hacks Repelled . | . . . . . Allies | -11 -10 -10 -10 -9 -------- Run | Yrd Mat Min Exi Min Total Allies 5 | . . . 3 2 Largest Group 5 | . . . 3 5 Highest-Rated Group 78 | . . . 37 78 Highest-Rated Ally 31 | . . . 21 31 Total Orders 1 | . . . . 1 STAY 1 | . . . . 1 Ally Attacks 9 | . . . . 9 Total Damage 102 | . . . . 102 Kills 1 | . . . . 1 Allies Corrupted . | . . . . . Allies Melted . | . . . . . Intel | -11 -10 -10 -10 -9 ------- Run | Yrd Mat Min Exi Min Robot Analysis Total . | . . . . . Derelict Logs Recovered 1 | . . 1 . . Drone Launches . | . . . . . Drone Recoveries . | . . . . . Exploration | -11 -10 -10 -10 -9 ------------- Run | Yrd Mat Min Exi Min Turns Passed 3046 | 144 176 1072 1434 220 Spaces Moved 1313 | 52 72 502 603 84 Core . | . . . . . Treads 608 | . . . 524 84 Legs 705 | 52 72 502 79 . Wheels . | . . . . . Hover . | . . . . . Flight . | . . . . . Fastest Speed 120 | 120 120 190 160 240 Average Speed 208 | 120 150 190 232 248 Slowest Speed 320 | 120 190 190 240 320 Overloaded Moves . | . . . . . Propulsion Burnouts . | . . . . . Robots Hopped . | . . . . . Cave-ins Triggered . | . . . . . Exploration Rate (%) 45 | 4 13 87 93 29 Regions Visited 4 Branch Regions 3 Pre-discovered Areas 1 | . . . 1 . Known Exits Taken . | . . . . . Unknown Exits Taken 4 | 1 1 1 1 . Scrap Searched 1 | . . 1 . . Spaces Dug 4 | . 4 . . . Terrain Destroyed 4 | . 4 . . . Melee . | . . . . . Projectile 4 | . 4 . . . AOE . | . . . . . Terrain Rammed . | . . . . . Walls Destroyed . | . . . . . Machines Disabled . | . . . . . Actions | -11 -10 -10 -10 -9 --------- Run | Yrd Mat Min Exi Min Total 1504 | 94 101 582 638 89 Wait 58 | 11 7 40 . . Move 1309 | 51 71 501 602 84 Hop . | . . . . . Pick Up 21 | 5 . 10 6 . Fast Attach 2 | 1 . 1 . . Attach 4 | . . 2 . 2 Detach . | . . . . . Swap 10 | 1 3 3 3 . Drop 9 | 3 1 3 2 . Fire 66 | 22 19 22 . 3 Melee . | . . . . . Ram . | . . . . . Kick . | . . . . . Crush . | . . . . . Escape Stasis . | . . . . . Rewire 25 | . . . 25 . Trap . | . . . . . Miscellaneous . | . . . . . Route ------- -11/Scrapyard -10/Materials -10/Mines (discovered 3 exits: [*Mat x2] / *Exi) -10/Exiles (discovered 2 exits: [*Min x2]) -9/Mines History --------- Turn | Location | Event 15 | -11/Scrapyard | Discovered new exit (range 3) 145 | -11/Scrapyard | Entered Materials 233 | -10/Materials | Discovered new exit (range 10) 310 | -10/Materials | Build established: Mutant 321 | -10/Materials | Entered Mines 325 | -10/Mines | Met a Derelict bent on vengeance 335 | -10/Mines | Discovered new exit (range 13) 424 | -10/Mines | Lost 3 parts (1p2w) 622 | -10/Mines | Learned Materials emergency access door positions 850 | -10/Mines | Found a hidden stash of uninstalled traps 950 | -10/Mines | Core integrity fell below 50% 1011 | -10/Mines | Build established: Scavenger-Mutant 1309 | -10/Mines | Discovered new exit (range 11) 1385 | -10/Mines | Deemed a non-threat by the Exiles lab entrance 1385 | -10/Mines | Discovered new exit (range 5) 1393 | -10/Mines | Entered Exiles 1393 | -10/Exiles | Found Exiles lab destroyed 1424 | -10/Exiles | Discovered new exit (range 14) 1868 | -10/Exiles | Build established: Mutant 2097 | -10/Exiles | Learned location of Zion (-6) 2174 | -10/Exiles | Discovered new exit (range 14) 2827 | -10/Exiles | Entered Mines 2827 | -9/Mines | Accompanied by 3 allies 2980 | -9/Mines | Assembled infested the area 3021 | -9/Mines | Core integrity fell below 20% 3047 | -9/Mines | Destroyed by as-74904 with Assembled Blade Last Messages --------------- 03008_ C-30 ARC bursts open, deploying its payload. 03008_ D-53 Grenadier unfolds itself. 03008_ T-07 Excavator destroyed. 03012_ A pair of derelicts emerge from the shadows: "We're, um, lost. You wouldn't happen to know the way out of here, would you?" 03013_ Seismic Detector destroyed. 03017_ The unstable cave ceiling collapses. 03017_ Lgt. Treads destroyed. 03019_ Particle Gun destroyed. 03019_ Lgt. Ion Engine destroyed. 03020_ D-53 Grenadier destroyed. 03020_ R-06 Scavenger destroyed. 03021_ The unstable cave ceiling collapses. 03024_ Acquired 30 matter. 03027_ The unstable cave ceiling collapses. 03027_ C7-D96(z) destroyed. 03028_ The unstable cave ceiling collapses. 03043_ as-74904 sneak attacks. 03043_ U-05 Engineer destroyed. 03045_ Med. Laser destroyed. Map ----- +----------------------------------------------------+ | ???????????# #?????????????????????? | | ??????????? #?????????????????????? | | ???????????# #?????????????????????? | | ???????????# ?????????????????????? | | ???????????# #?????????????????????? | | ???????????# #?????????????????????? | | ?????####??# ##????????????????????? | | ????## #### ###??????????????????? | | ????# ## #??????????????????? | | ???## ######?????????????? | | ??## #?????????????? | | ??# ####### ###???????????? | | ??# ##?## ##??????????? | | ??## ##??# ##?????????? | | ???## ##??# # ## #?????????? | | ????# ##?# # #?????????? | | ????# ### % ##?????????? | | ???## # ## ## #?????????? | | ??## #### # # % #?????????? | | ??# ##???# # %# ## #???????? | | ?## ##????# #???????? | | ## #?????## #### a ####???????? | | #??????## ###?###a #??????????? | | ##???????###### ##%a#???#??????? | | ##????????????# !a## ##?????? | | ####????????????# a@ #?????? | | ????????????????# #????? | | ????????????????# #????? | | ????????????????# #????? | | ????????????????# ## #????? | | ????????????????# #?## ###u #????? | | ???????????????# #???####?? #????? | | ???????????????## #??????????? #????? | | ????????????????##?????????????#????? | | ????????????????????????????????????? | | ????????????????????????????????????? | | ????????????????????????????????????? | | ????????????????????????????????????? | | ????????????????????????????????????? | | ????????????????????????????????????? | | ????????????????????????????????????? | | ????????????????????????????????????? | | ????????????????????????????????????? | | ????????????????????????????????????? | | ????????????????????????????????????? | | ????????????????????????????????????? | | ????????????????????????????????????? | | ????????????????????????????????????? | | ????????????????????????????????????? | | ????????????????????????????????????? | +----------------------------------------------------+ Best States ------------- Heat Dissipation 25 Energy Generation 10 Energy Capacity 250 Matter Stores 500 Matter Capacity 500 Sight Range 16 Terrain Scan Density 10 Evasion (%) 55 Recoil Reduction 2 Item Schematics ----------------- None Robot Schematics ------------------ None Fabricated ------------ Nothing Alien Tech Used ----------------- None Achievements -------------- None Challenges ------------ None Game ------ Seed JunkRocketFrame Manual? 0 Play Time 00:19:50 Cumulative 174.9 hours Start 2024.09.26 @ 18:48:29 End 2024.09.27 @ 16:15:14 Sessions 3 Manual Loads 0 Difficulty Rogue Special Mode None Game No. 318 Rogue 314 Adventurer 0 Explorer 4 Win Type - Total 0 Types 0/0/0/0/0/0/0/0/0 Lore% 21 Gallery% 46 Achievement% 35 Wizard Run 0 Options --------- Layout 1 ASCII 0 Keyboard 1 Movement Arrows Keybinds 0 Fullscreen 1 Font 32/SmallcapsGlow Map View 130x35 Zoom Use 0% Tactical HUD 1 Map Filters NONE Filters NONE Steam 0 RUN: 0d856e28-621f-4e4c-9f3b-2ef5c8abde91